bitfinex/quotes_ETHUSD_20220118
["timestamp","ask_amount","ask_price","bid_price","bid_amount"]
[1642487769784,1.10113684,3194.4,3194.3,1.76476246]
[1642487770184,1.10013684,3194.4,3194.3,3.96476246]
[1642487770387,0.60113684,3194.4,3194.3,4.96476246]
[1642487770787,3.27522725,3194.4,3194.3,4.96476246]
[1642487771188,2.77622725,3194.4,3194.3,4.96476246]
[1642487771424,2.77522725,3194.4,3194.3,4.96476246]
[1642487772023,2.77522725,3194.4,3194.3,1.76476246]
[1642487772223,2.77522725,3194.4,3194.3,0.76476246]
[1642487772423,2.27622725,3194.4,3194.3,0.76476246]
[1642487772827,0.1252,3195.1,3194.3,0.76476246]
[1642487773327,0.12917897,3195.1,3194.3,0.76476246]
[1642487774831,0.12917897,3195.1,3194.4,2.43819698]
[1642487775031,0.00397897,3195.1,3194.5,0.447]
[1642487775275,3.10397897,3195.1,3194.5,0.447]
[1642487775476,3.10397897,3195.1,3194.6,1.25883894]
[1642487775677,3.10397897,3195.1,3194.6,0.747]
[1642487775874,3.10397897,3195.1,3194.6,1.047]
[1642487776276,3.10397897,3195.1,3194.6,0.747]
[1642487776678,3.10397897,3195.1,3194.6,0.447]
[1642487778083,3.10397897,3195.1,3194.6,1.047]
[1642487779125,3.10397897,3195.1,3194.7,0.01717442]
[1642487780522,3.05397897,3195.1,3194.7,0.01717442]
[1642487780728,3.05397897,3195.1,3194.8,0.00170527]
[1642487784279,3.05397897,3195.1,3194.9,0.01770183]
[1642487784477,3.17897897,3195.1,3194.9,0.01770183]
[1642487789329,3.17897897,3195.1,3194.8,0.00170527]
[1642487790571,3.05397897,3195.1,3194.8,0.00170527]
[1642487792580,2.6750441,3195.0,3194.8,0.00170527]
[1642487794230,2.6750441,3195.0,3194.9,0.01620119]
[1642487794635,2.6750441,3195.0,3194.9,0.01733804]
[1642487799179,2.6750441,3195.0,3194.9,0.00113685]
[1642487802731,2.8000441,3195.0,3194.4,0.47798869]
[1642487802930,24.2452,3194.9,3194.4,0.47798869]
[1642487803228,24.2452,3194.9,3194.5,0.00227369]
[1642487803832,18.5452,3194.9,3194.5,0.00227369]
[1642487804230,0.1252,3194.9,3194.5,0.00227369]
[1642487805479,0.1252,3194.9,3194.5,0.12747369]
[1642487805480,6.08174006,3194.8,3194.5,0.12747369]
[1642487805677,6.08174006,3194.8,3194.5,2.97930175]
[1642487805874,6.08174006,3194.8,3194.6,0.48683842]
[1642487806175,6.08174006,3194.8,3194.7,3.40113685]
[1642487806475,6.08174006,3194.8,3194.7,3.70113685]
[1642487806676,6.08174006,3194.8,3194.7,4.70113685]
[1642487806874,3.40669596,3194.8,3194.7,4.70113685]
[1642487807279,3.05397897,3195.1,3194.7,4.70113685]
[1642487807680,3.05397897,3195.1,3194.8,1.0]
[1642487808081,3.05397897,3195.1,3194.8,1.03956338]
[1642487808482,3.05397897,3195.1,3195.0,1.38050382]
[1642487808684,3.05397897,3195.1,3195.0,8.70135309]
[1642487808928,3.05397897,3195.1,3195.0,4.785205]
[1642487808929,3.05511582,3195.1,3195.0,4.785205]
[1642487809128,3.05511582,3195.1,3195.0,5.785205]
[1642487809531,3.05511582,3195.1,3195.0,5.96397799]
[1642487809730,2.95511582,3195.1,3195.0,5.96397799]
[1642487810135,2.95511582,3195.1,3195.0,5.78819156]
[1642487810336,2.95511582,3195.1,3195.0,5.81899634]
[1642487810632,2.95511582,3195.1,3195.0,5.80552795]
[1642487810831,2.95511582,3195.1,3195.0,3.34312872]
[1642487811232,2.95511582,3195.1,3195.0,5.83318472]
[1642487813483,2.95511582,3195.1,3195.0,3.25260382]
[1642487814086,2.95511582,3195.1,3195.0,3.29253055]
[1642487814785,2.95511582,3195.1,3195.0,3.16743055]
[1642487815490,2.95511582,3195.1,3195.0,2.16743055]
[1642487815686,2.95511582,3195.1,3195.0,3.16743055]
[1642487815885,2.95511582,3195.1,3195.0,2.16743055]
[1642487816087,2.95511582,3195.1,3195.0,3.16743055]
[1642487816287,2.95511582,3195.1,3195.0,7.16743055]
[1642487816526,2.95511582,3195.1,3195.0,6.78692673]
[1642487817126,2.95511582,3195.1,3195.0,6.747]
[1642487817326,2.95511582,3195.1,3195.0,5.747]
[1642487817526,2.95511582,3195.1,3195.0,5.447]
[1642487817932,2.95511582,3195.1,3195.0,5.0]
[1642487817933,3.08011582,3195.1,3195.0,5.0]
[1642487819135,3.08011582,3195.1,3195.0,5.3]
[1642487819834,5.6300533,3195.1,3194.7,0.00113685]
[1642487820034,5.375,3195.0,3194.7,0.00113685]
[1642487820683,0.125,3195.0,3194.7,0.00113685]
[1642487821082,2.67493748,3194.9,3194.7,0.00113685]
[1642487821285,3.0752,3194.8,3194.7,0.00113685]
[1642487821687,0.1252,3194.8,3194.7,0.00113685]
[1642487822089,2.80013748,3194.8,3194.7,0.00113685]
[1642487822288,2.67493748,3194.8,3194.7,0.00113685]
[1642487822786,2.41179771,3195.0,3194.7,0.00113685]
[1642487822987,2.96766439,3195.1,3194.7,0.00113685]
[1642487823188,2.59003064,3195.0,3194.7,0.00113685]
[1642487823386,2.89003064,3195.0,3194.7,0.00113685]
[1642487823588,2.59003064,3195.0,3194.7,0.00113685]
[1642487823787,6.87086323,3195.0,3194.7,0.00113685]
[1642487824425,7.17086323,3195.0,3194.7,0.00113685]
[1642487824627,6.87086323,3195.0,3194.7,0.00113685]
[1642487825426,4.28083259,3194.9,3194.7,0.00113685]
[1642487826627,4.28083259,3194.9,3194.6,0.00170527]
[1642487827027,4.28083259,3194.9,3194.8,0.00708843]
[1642487828080,2.67526291,3195.0,3194.8,0.00708843]
[1642487831926,2.67526291,3195.0,3194.9,5.875]
[1642487832130,2.67526291,3195.0,3194.9,8.10530556]
[1642487832325,2.67526291,3195.0,3194.9,8.40530556]
[1642487832527,2.67526291,3195.0,3194.9,11.22917996]
[1642487832928,2.95511582,3195.1,3194.9,11.22917996]
[1642487833130,2.95511582,3195.1,3195.0,5.4]
[1642487833328,2.95511582,3195.1,3195.0,1.33240108]
[1642487833929,2.95511582,3195.1,3195.0,1.83240108]
[1642487834529,2.95511582,3195.1,3195.0,1.33240108]
[1642487834729,5.12977186,3195.1,3195.0,3.83240108]
[1642487834938,5.12977186,3195.1,3195.0,0.45740108]
[1642487835192,4.62977186,3195.1,3195.0,1.45740108]
[1642487835391,4.62977186,3195.1,3195.0,0.90440108]
[1642487835591,4.12977186,3195.1,3195.0,4.35440108]
[1642487835790,4.12977186,3195.1,3195.0,1.872]
[1642487835992,4.12977186,3195.1,3195.0,1.9034194]
[1642487836191,4.12977186,3195.1,3195.0,0.9034194]
[1642487836395,4.12977186,3195.1,3195.0,1.9034194]
[1642487836591,3.92977186,3195.1,3195.0,0.9034194]
[1642487836792,3.92977186,3195.1,3195.0,1.9034194]
[1642487837192,3.92977186,3195.1,3195.0,0.9034194]
[1642487837393,3.62977186,3195.1,3195.0,1.7784194]
[1642487837599,3.62977186,3195.1,3195.0,1.31339824]
[1642487837893,3.42977186,3195.1,3195.0,2.31339824]
[1642487838494,3.12977186,3195.1,3195.0,2.31339824]
[1642487838935,3.12863501,3195.1,3195.0,2.31339824]
[1642487839133,0.25397897,3195.1,3195.0,2.31339824]
[1642487839332,3.9825,3195.8,3195.1,0.04602103]
[1642487839534,3.9825,3195.8,3195.1,0.17102103]
[1642487839732,0.00454739,3195.7,3195.1,0.125]
[1642487839934,0.00454739,3195.7,3195.0,2.43839824]
[1642487840133,0.00397896,3195.6,3195.0,2.43839824]
[1642487840539,0.00341054,3195.5,3195.0,1.9034194]
[1642487841038,0.00284212,3195.4,3195.0,1.9034194]
[1642487841545,0.00227369,3195.3,3195.0,1.9034194]
[1642487841939,0.00170527,3195.2,3195.0,1.9034194]
[1642487842341,0.00113685,3195.1,3195.0,1.9034194]
[1642487843183,2.67464294,3195.7,3195.2,0.49788418]
[1642487843583,0.00284211,3195.6,3195.2,0.79788418]
[1642487843784,0.00284211,3195.6,3195.2,0.83563405]
[1642487844086,0.00227369,3195.5,3195.2,0.63774987]
[1642487844285,0.00227369,3195.5,3195.2,2.74299027]
[1642487844485,2.67464294,3195.7,3195.2,0.3]
[1642487844686,2.67464294,3195.7,3195.5,1.5639356]
[1642487844884,0.00113684,3195.6,3195.5,1.59417087]
[1642487845084,0.00113684,3195.6,3195.5,2.19417087]
[1642487846185,0.00113684,3195.6,3195.5,6.54117087]
[1642487846732,0.00113684,3195.6,3195.5,3.64117087]
[1642487846929,0.00113684,3195.6,3195.5,2.07723527]
[1642487847129,0.00113684,3195.6,3195.5,1.07723527]
[1642487847427,3.10113684,3195.6,3195.5,3.48448653]
[1642487847630,3.10113684,3195.6,3195.5,4.48448653]
[1642487848833,2.67464294,3196.2,3196.1,1.31676092]
[1642487849033,1.60556968,3196.3,3196.1,1.61676092]
[1642487849237,1.60556968,3196.3,3196.1,1.91676092]
[1642487850034,1.60556968,3196.3,3196.1,1.95426847]
[1642487850282,1.60556968,3196.3,3196.1,1.91676092]
[1642487851282,1.60556968,3196.3,3196.1,1.95475047]
[1642487851483,1.60556968,3196.3,3196.1,1.91676092]
[1642487852482,1.1687,3196.7,3196.1,1.91676092]
[1642487852483,1.60556968,3196.5,3196.1,1.91676092]
[1642487852787,1.6106855,3196.5,3196.1,1.91676092]
[1642487852986,1.6106855,3196.5,3196.1,1.95667111]
[1642487853186,1.6106855,3196.5,3196.1,1.91676092]
[1642487854562,1.60556968,3196.3,3196.1,1.91676092]
[1642487854754,1.60556968,3196.3,3196.1,1.94953257]
[1642487854954,0.00341055,3196.2,3196.1,1.91676092]
[1642487855157,0.00341055,3196.2,3196.1,1.95159012]
[1642487855354,0.00341055,3196.2,3196.1,1.91676092]
[1642487855556,0.00341055,3196.2,3196.1,1.95581653]
[1642487855756,0.00341055,3196.2,3196.1,1.91676092]
[1642487855957,0.00341055,3196.2,3196.1,0.3]
[1642487856557,0.00341055,3196.2,3195.9,0.33901276]
[1642487856958,0.00284212,3196.1,3195.9,0.3]
[1642487857161,0.00284212,3196.1,3195.8,1.92488418]
[1642487857359,1.60556968,3196.3,3195.8,1.79988418]
[1642487857360,0.0022737,3196.0,3195.8,1.79988418]
[1642487857786,0.00170528,3195.9,3195.8,1.83460692]
[1642487857989,0.00170528,3195.9,3195.8,0.79988418]
[1642487858688,0.00170528,3195.9,3195.8,0.3]
[1642487858887,0.00170528,3195.9,3195.7,0.747]
[1642487859086,0.00170528,3195.9,3195.7,1.047]
[1642487859287,0.00113685,3195.8,3195.7,1.047]
[1642487867600,0.00113685,3195.8,3195.7,0.3]
[1642487868202,0.00113685,3195.8,3195.5,3.43926116]
[1642487871937,0.00113685,3195.8,3195.6,0.00709217]
[1642487872792,0.00113685,3195.8,3195.6,2.38591639]
[1642487873190,0.00113685,3195.8,3195.6,3.38591639]
[1642487873391,0.00113685,3195.8,3195.7,2.83437929]
[1642487873591,0.00113685,3195.8,3195.7,4.43437929]
[1642487875695,0.00113685,3195.8,3195.7,4.55937929]
[1642487876631,0.00113685,3195.8,3195.7,2.047]
[1642487876832,0.00113685,3195.8,3195.7,1.047]
[1642487877131,0.00113685,3195.8,3195.7,2.047]
[1642487877333,0.00113685,3195.8,3195.7,1.047]
[1642487877532,0.00113685,3195.8,3195.7,2.047]
[1642487877938,0.00113685,3195.8,3195.7,1.047]
[1642487878135,0.00113685,3195.8,3195.7,2.047]
[1642487878734,0.00113685,3195.8,3195.7,4.41972666]
[1642487880485,0.00113685,3195.8,3195.7,1.747]
[1642487880686,0.00113685,3195.8,3195.7,1.047]
[1642487880883,0.00113685,3195.8,3195.7,0.747]
[1642487881083,0.00113685,3195.8,3195.7,1.047]
[1642487881286,0.00113685,3195.8,3195.7,0.747]
[1642487881484,0.00113685,3195.8,3195.7,1.047]
[1642487881683,0.00113685,3195.8,3195.7,3.44733887]
[1642487882084,0.00113685,3195.8,3195.7,4.4544267]
[1642487882486,2.67422627,3196.6,3195.9,0.04393065]
[1642487882687,2.67422627,3196.6,3196.0,0.572]
[1642487882889,2.67422627,3196.6,3196.1,2.46804095]
[1642487882890,0.00341054,3196.4,3196.1,2.46804095]
[1642487883092,0.00341054,3196.4,3196.1,3.51504095]
[1642487883292,0.00284212,3196.3,3196.1,4.55243311]
[1642487883492,0.00284212,3196.3,3196.1,4.51504095]
[1642487883790,0.0022737,3196.2,3196.1,2.047]
[1642487884335,0.0022737,3196.2,3196.1,4.4580342]
[1642487884535,0.0022737,3196.2,3196.1,4.46167634]
[1642487884936,0.0022737,3196.2,3196.1,2.08422319]
[1642487885136,0.0022737,3196.2,3196.1,3.5131759]
[1642487885335,0.0022737,3196.2,3196.1,4.5131759]
[1642487885538,0.0022737,3196.2,3196.1,2.08422319]
[1642487885742,0.0022737,3196.2,3196.1,4.44053071]
[1642487887694,0.0022737,3196.2,3196.1,0.48422319]
[1642487887889,0.0022737,3196.2,3195.5,4.21053627]
[1642487888088,0.0022737,3196.2,3195.7,0.447]
[1642487888291,0.00170527,3196.1,3195.7,0.447]
[1642487888688,0.00113685,3196.0,3195.7,0.447]
[1642487888889,0.00113685,3196.0,3195.7,0.747]
[1642487889088,2.67820524,3196.5,3195.7,0.747]
[1642487890389,2.67422627,3196.4,3195.7,0.747]
[1642487890793,0.00284212,3196.3,3195.7,0.747]
[1642487890990,0.00284212,3196.3,3195.9,0.3]
[1642487891189,0.0022737,3196.2,3195.7,0.747]
[1642487891635,0.00170527,3196.1,3195.7,0.747]
[1642487892035,0.00113685,3196.0,3195.7,0.747]
[1642487892436,0.00284212,3196.3,3195.7,0.747]
[1642487892637,0.00284212,3196.3,3195.8,2.35651207]
[1642487892838,0.0022737,3196.2,3195.7,0.872]
[1642487893039,0.0022737,3196.2,3195.8,0.125]
[1642487893238,0.00170527,3196.1,3195.7,0.747]
[1642487893640,0.00113685,3196.0,3195.7,0.747]
[1642487894041,0.00397897,3196.5,3195.8,2.38987469]
[1642487894241,0.00284212,3196.5,3195.8,2.38987469]
[1642487894441,0.00284212,3196.5,3195.9,0.3]
[1642487894643,0.00227369,3196.4,3195.9,0.3]
[1642487894840,0.00227369,3196.4,3195.7,2.047]
[1642487895042,0.00170527,3196.3,3195.7,1.047]
[1642487895286,0.00170527,3196.3,3195.8,0.00113685]
[1642487895486,2.67422627,3196.7,3195.8,0.00113685]
[1642487895487,0.00113685,3196.2,3195.8,0.00113685]
[1642487895887,0.00341054,3196.6,3195.8,0.00113685]
[1642487896288,0.00284212,3196.5,3195.8,0.00113685]
[1642487896688,0.00227369,3196.4,3195.8,0.00113685]
[1642487897088,0.00170527,3196.3,3195.8,0.00113685]
[1642487897489,0.00113685,3196.2,3195.8,0.00113685]
[1642487897794,0.00284212,3196.5,3195.8,0.00113685]
[1642487898193,0.00227369,3196.4,3195.8,0.00113685]
[1642487898597,0.00170527,3196.3,3195.8,0.00113685]
[1642487898797,0.125,3196.2,3195.8,0.00113685]
[1642487899039,0.12613685,3196.2,3195.8,0.00113685]
[1642487899238,0.00113685,3196.2,3195.7,0.00170527]
[1642487900041,2.67422627,3196.1,3195.6,0.0022737]
[1642487901643,0.00113685,3196.2,3195.6,0.0022737]
[1642487901842,0.12613685,3196.2,3195.6,0.0022737]
[1642487902693,2.67422627,3196.1,3195.6,0.0022737]
[1642487904090,2.67422627,3196.1,3195.6,1.30352551]
[1642487904291,2.67422627,3196.1,3195.6,1.60352551]
[1642487904492,2.67536312,3196.2,3195.7,0.00170527]
[1642487904691,2.67536312,3196.2,3195.7,1.00170527]
[1642487905092,2.67422627,3196.0,3195.8,0.00113685]
[1642487905894,2.67536312,3196.2,3195.8,0.00113685]
[1642487907536,2.67536312,3196.2,3195.7,0.00170527]
[1642487908340,0.00113685,3196.2,3195.7,0.00170527]
[1642487909441,0.00113685,3196.2,3195.7,1.00170527]
[1642487909642,0.00113685,3196.2,3195.7,0.00170527]
[1642487909841,0.00113685,3196.2,3195.8,0.00113685]
[1642487910042,0.00113685,3196.2,3195.7,1.00170527]
[1642487910287,0.00113685,3196.2,3195.8,0.00113685]
[1642487910886,0.00113685,3196.2,3195.7,1.00170527]
[1642487911086,0.00113685,3196.2,3195.8,0.00113685]
[1642487912087,0.00113685,3196.2,3195.7,1.12670527]
[1642487912289,0.00113685,3196.2,3195.8,0.00113685]
[1642487912893,0.00113685,3196.2,3195.7,1.11590331]
[1642487913094,2.67422627,3196.3,3195.8,2.39435876]
[1642487913095,0.00170527,3196.1,3195.8,2.39435876]
[1642487913293,0.00170527,3196.1,3195.9,0.425]
[1642487913494,2.67422627,3196.3,3196.0,5.7]
[1642487913693,2.67422627,3196.3,3196.1,1.125]
[1642487913931,0.00113685,3196.2,3196.1,5.275]
[1642487914132,0.00113685,3196.2,3196.1,5.806391]
[1642487914336,2.67422627,3196.8,3196.2,5.73104128]
[1642487914532,2.67422627,3196.8,3196.3,1.0]
[1642487914731,0.00284211,3196.7,3196.4,0.125]
[1642487914932,2.67706838,3196.7,3196.4,0.125]
[1642487915134,0.00227369,3196.6,3196.4,0.125]
[1642487915332,2.67649996,3196.6,3196.4,0.125]
[1642487915532,0.00170527,3196.5,3196.4,0.425]
[1642487915732,0.00170527,3196.5,3196.4,0.29003242]
[1642487915931,0.00170527,3196.5,3196.3,0.29023673]
[1642487915932,2.67593154,3196.5,3196.3,0.29023673]
[1642487916233,2.67593154,3196.5,3196.2,0.572]
[1642487916234,0.00113684,3196.4,3196.2,0.572]
[1642487916838,2.6744831,3196.4,3196.2,0.56240791]
[1642487917036,2.67360309,3197.0,3196.2,0.5497366]
[1642487917236,2.67360309,3197.0,3196.2,0.82964314]
[1642487917237,1.60556968,3197.0,3196.2,0.82964314]
[1642487917436,1.60898022,3197.0,3196.2,1.09945616]
[1642487917690,1.60898022,3197.0,3196.2,2.07938424]
[1642487917888,0.00341054,3197.0,3196.2,1.07938424]
[1642487918088,0.00341054,3197.0,3196.2,2.07938424]
[1642487918788,0.00341054,3197.0,3196.2,1.07938424]
[1642487918990,1.60898022,3197.0,3196.2,1.07938424]
[1642487919495,0.00341054,3197.0,3196.2,1.07938424]
[1642487921935,0.00341054,3197.0,3196.2,0.67445616]
[1642487922139,0.00341054,3197.0,3196.2,0.97445616]
[1642487922540,0.00341054,3197.0,3196.2,0.66073487]
[1642487922741,0.00341054,3197.0,3196.2,0.65086632]
[1642487922940,0.00341054,3197.0,3196.2,0.63111372]
[1642487923140,0.00341054,3197.0,3196.2,0.61110876]
[1642487923340,0.00341054,3197.0,3196.2,0.59188763]
[1642487923540,0.00341054,3197.0,3196.2,0.57165262]
[1642487923742,0.00341054,3197.0,3196.2,0.41485586]
[1642487923943,0.00341054,3197.0,3196.2,0.40510281]
[1642487924144,0.00341054,3197.0,3196.2,0.37529478]
[1642487924444,0.00341054,3197.0,3196.2,0.33779021]
[1642487924646,0.00341054,3197.0,3196.0,4.77889781]
[1642487924844,0.00341054,3197.0,3196.0,4.76805545]
[1642487925046,0.00341054,3197.0,3196.0,4.748999]
[1642487925285,0.15866339,3196.9,3196.0,1.98699933]
[1642487925487,0.15866339,3196.9,3196.0,1.60199117]
[1642487925684,0.00397897,3196.8,3196.0,1.60199117]
[1642487926085,0.00341054,3196.7,3196.0,1.60199117]
[1642487926485,0.00284212,3196.6,3196.0,1.60199117]
[1642487926885,0.0022737,3196.5,3196.0,2.10099933]
[1642487927085,0.0022737,3196.5,3196.0,2.40099933]
[1642487927290,0.00170527,3196.4,3196.0,2.70099933]
[1642487927687,0.00113685,3196.3,3196.0,2.70099933]
[1642487928089,0.00397897,3196.8,3196.0,2.70099933]
[1642487928491,0.00341054,3196.7,3196.0,2.70099933]
[1642487928789,0.154116,3196.9,3196.1,0.447]
[1642487928790,0.00284212,3196.6,3196.1,0.447]
[1642487929033,0.00284212,3196.6,3196.1,1.447]
[1642487929233,0.0022737,3196.5,3196.1,1.447]
[1642487929432,0.0022737,3196.5,3196.2,2.42221092]
[1642487929636,0.00170527,3196.4,3196.3,2.997]
[1642487929837,0.00170527,3196.4,3196.3,0.747]
[1642487930036,0.00170527,3196.4,3196.3,1.747]
[1642487930434,0.00170527,3196.4,3196.3,0.747]
[1642487931037,0.00170527,3196.4,3196.3,1.747]
[1642487931241,0.00170527,3196.4,3196.3,0.747]
[1642487931438,0.00170527,3196.4,3196.3,1.747]
[1642487931839,0.00170527,3196.4,3196.3,4.11311095]
[1642487932242,0.00170527,3196.4,3196.3,1.747]
[1642487932445,0.00170527,3196.4,3196.3,4.11171915]
[1642487932693,0.00170527,3196.4,3196.3,1.747]
[1642487933085,0.00170527,3196.4,3196.3,0.747]
[1642487933486,0.00170527,3196.4,3196.3,3.10241962]
[1642487933687,0.00170527,3196.4,3196.3,1.747]
[1642487934087,0.00170527,3196.4,3196.3,0.747]
[1642487934288,0.00170527,3196.4,3196.3,3.09956857]
[1642487934489,0.00170527,3196.4,3196.3,3.11979368]
[1642487934689,0.00170527,3196.4,3196.3,1.747]
[1642487934889,0.00170527,3196.4,3196.3,0.747]
[1642487935093,0.00170527,3196.4,3196.3,3.10085538]
[1642487935289,0.00170527,3196.4,3196.3,0.747]
[1642487936636,0.00170527,3196.4,3196.3,3.10217253]
[1642487937136,0.00170527,3196.4,3196.3,1.747]
[1642487937339,0.00170527,3196.4,3196.3,0.747]
[1642487944237,0.00170527,3196.4,3196.0,1.60199117]
[1642487944437,0.00170527,3196.4,3196.0,2.20199117]
[1642487944637,0.00113685,3196.3,3196.0,0.60199117]
[1642487944937,0.0022737,3196.5,3196.0,0.60199117]
[1642487945136,0.0022737,3196.5,3196.1,0.53481004]
[1642487945339,0.00170527,3196.4,3196.1,0.53481004]
[1642487945545,0.125,3196.3,3196.1,0.53481004]
[1642487945745,0.12613685,3196.3,3196.1,0.53481004]
[1642487946544,0.12613685,3196.3,3196.0,0.125]
[1642487946743,0.12613685,3196.3,3195.6,1.54186128]
[1642487946944,0.12613685,3196.3,3195.6,2.14186128]
[1642487947145,0.12613685,3196.3,3195.7,0.00227369]
[1642487947346,2.67361364,3196.2,3195.7,0.00227369]
[1642487948095,2.67361364,3196.2,3195.8,0.83482792]
[1642487948295,0.00113685,3196.3,3195.8,0.83482792]
[1642487948492,0.00113685,3196.3,3195.9,0.30113684]
[1642487948892,0.00113685,3196.3,3195.9,0.42613684]
[1642487949693,0.00113685,3196.3,3196.1,1.50725093]
[1642487950094,0.00113685,3196.3,3196.1,1.80725093]
[1642487950294,0.00113685,3196.3,3196.1,2.10725093]
[1642487951837,0.00113685,3196.3,3196.1,0.3]
[1642487952038,0.00113685,3196.3,3195.9,0.72613684]
[1642487952240,0.00113685,3196.3,3195.9,1.17313684]
[1642487952442,0.00113685,3196.3,3195.9,0.87313684]
[1642487953245,0.00113685,3196.3,3196.0,1.12087194]
[1642487953442,0.00113685,3196.3,3196.1,0.125]
[1642487953643,0.00113685,3196.3,3195.9,0.74813684]
[1642487953841,0.00113685,3196.3,3195.9,0.44813684]
[1642487954042,0.00113685,3196.3,3195.9,1.74813684]
[1642487954243,0.00113685,3196.3,3195.9,0.74813684]
[1642487961039,0.00113685,3196.3,3195.9,0.30113684]
[1642487961249,0.00113685,3196.3,3195.9,0.00113684]
[1642487961739,0.00113685,3196.3,3195.9,0.30113684]
[1642487962041,2.67460425,3196.3,3195.8,0.00170527]
[1642487962240,2.37216779,3196.2,3195.8,0.00170527]
[1642487962709,2.31962635,3196.2,3195.8,0.00170527]
[1642487962898,2.67460425,3196.3,3195.8,0.00170527]
[1642487963700,0.00113685,3196.3,3195.8,0.00170527]
[1642487963902,0.00113685,3196.3,3195.9,0.125]
[1642487965500,0.00113685,3196.3,3195.9,0.425]
[1642487966942,0.00113685,3196.3,3195.9,1.96686128]
[1642487967141,0.00113685,3196.3,3195.9,2.96686128]
[1642487967541,0.00113685,3196.3,3195.9,1.66686128]
[1642487968145,0.00113685,3196.3,3195.9,1.54186128]
[1642487968547,0.00113685,3196.3,3195.8,0.44870527]
[1642487968947,0.00113685,3196.3,3195.9,0.00113684]
[1642487969947,2.67475272,3196.3,3195.9,0.00113684]
[1642487970387,2.67475272,3196.3,3195.9,0.30113684]
[1642487970787,0.00113685,3196.3,3195.9,0.30113684]
[1642487971389,0.00113685,3196.3,3195.9,0.00113684]
[1642487971590,0.00113685,3196.3,3195.9,0.30113684]
[1642487971989,0.00113685,3196.3,3195.9,0.00113684]
[1642487972189,2.67476921,3196.3,3195.9,0.30113684]
[1642487972589,2.25915606,3196.2,3195.9,0.30113684]
[1642487973594,0.00113685,3196.3,3195.9,0.30113684]
[1642487975548,0.00113685,3196.3,3195.9,0.00113684]
[1642487975746,2.67377635,3196.4,3195.9,0.00113684]
[1642487975945,2.27426298,3196.3,3195.9,0.00113684]
[1642487976149,2.27426298,3196.3,3195.9,0.30113684]
[1642487976446,2.27426298,3196.3,3195.6,0.00284212]
[1642487976648,2.67377635,3196.4,3195.6,0.00284212]
[1642487976846,2.28588381,3196.3,3195.6,0.00284212]
[1642487977052,2.95454641,3196.5,3195.6,0.00284212]
[1642487977247,0.12670527,3196.4,3195.6,0.00284212]
[1642487977446,0.12670527,3196.4,3195.7,0.53487194]
[1642487977696,0.00113685,3196.3,3195.7,0.53487194]
[1642487977893,0.00113685,3196.3,3195.8,0.00170527]
[1642487977894,2.67392842,3196.2,3195.8,0.00170527]
[1642487978092,2.2176181,3196.1,3195.8,0.00170527]
[1642487978293,2.67392842,3196.2,3195.8,0.00170527]
[1642487978495,2.67392842,3196.2,3195.8,0.30170527]
[1642487978697,2.67506527,3196.3,3195.8,0.30170527]
[1642487978893,2.67506527,3196.3,3195.9,0.00113684]
[1642487979094,2.67392842,3196.1,3195.9,0.30113684]
[1642487979294,2.67392842,3196.1,3196.0,1.13964899]
[1642487979494,2.67392842,3196.1,3196.0,1.43964899]
[1642487979697,2.67392842,3196.1,3195.9,0.00113684]
[1642487979895,0.00113685,3196.3,3195.9,0.00113684]
[1642487980197,0.00113685,3196.3,3195.8,0.00170527]
[1642487980594,0.00113685,3196.3,3195.6,0.00284212]
[1642487980794,0.00113685,3196.3,3195.9,0.53485995]
[1642487980994,0.12613685,3196.3,3195.9,0.53485995]
[1642487982041,2.80006527,3196.3,3195.9,0.53485995]
[1642487982246,2.67506527,3196.3,3195.7,0.53485995]
[1642487982443,2.67506527,3196.3,3195.7,0.83485995]
[1642487982641,2.67506527,3196.3,3195.8,0.00170527]
[1642487983044,2.43561832,3196.2,3195.8,0.00170527]
[1642487983644,0.00113685,3196.3,3195.8,0.00170527]
[1642487984646,2.26059909,3196.3,3195.8,0.00170527]
[1642487985289,2.26059909,3196.3,3195.9,0.53485805]
[1642487985992,2.6740453,3196.2,3195.9,0.53485805]
[1642487986494,0.00113685,3196.3,3195.9,0.53485805]
[1642487986691,2.31124826,3196.3,3195.9,0.53485805]
[1642487987498,0.00113685,3196.3,3195.9,0.53485805]
[1642487987694,2.33040743,3196.3,3195.9,0.53485805]
[1642487987895,2.6740453,3196.2,3195.9,0.53485805]
[1642487988296,2.6740453,3196.2,3195.8,0.00170527]
[1642487989542,2.28436369,3196.1,3195.8,0.00170527]
[1642487989744,0.00113685,3196.3,3195.8,0.00170527]
[1642487989944,2.48225814,3196.3,3195.8,0.00170527]
[1642487990246,2.6740453,3196.0,3195.8,0.00170527]
[1642487991045,2.6740453,3196.0,3195.9,0.53484974]
[1642487991243,2.6740453,3196.2,3195.9,0.53484974]
[1642487991444,2.6740453,3196.2,3195.9,0.83598658]
[1642487992446,2.6740453,3196.2,3195.9,0.30113684]
[1642487992707,2.6740453,3196.0,3195.9,0.30113684]
[1642487992900,2.6740453,3196.0,3195.9,0.00113684]
[1642487993499,0.00113685,3196.3,3195.8,0.00170527]
[1642487993901,0.00113685,3196.3,3195.9,0.53484605]
[1642487994298,0.00113685,3196.3,3195.9,0.83484605]
[1642487995402,0.00113685,3196.3,3196.0,0.53484605]
[1642487995599,2.26213475,3196.3,3196.0,0.53484605]
[1642487995798,0.00113685,3196.3,3196.0,0.53484605]
[1642487996840,2.27343227,3196.3,3195.9,0.53484605]
[1642487997041,0.00113685,3196.3,3195.9,0.83484605]
[1642487998050,0.00113685,3196.3,3195.8,0.00170527]
[1642487999447,0.00113685,3196.3,3195.9,0.53484089]
[1642487999650,0.00113685,3196.3,3195.9,0.83484089]
[1642488001191,0.00113685,3196.3,3196.0,0.53484089]
[1642488002692,2.34860555,3196.3,3195.9,0.53484089]
[1642488002897,0.00113685,3196.3,3195.9,0.83484089]
[1642488004144,0.00113685,3196.3,3195.9,0.3]
[1642488004344,0.00113685,3196.3,3195.8,0.00170527]
[1642488007704,2.6740453,3196.5,3195.8,0.00170527]
[1642488008095,0.00170527,3196.4,3195.8,0.00170527]
[1642488008301,0.00170527,3196.4,3195.8,0.12670527]
[1642488008497,0.00113685,3196.3,3195.8,0.12670527]
[1642488008796,0.00113685,3196.3,3195.9,0.00113684]
[1642488011001,0.00113685,3196.3,3195.9,0.30113684]
[1642488011440,0.00113685,3196.3,3195.9,0.00113684]
[1642488012643,0.00113685,3196.3,3196.0,0.125]
[1642488013046,0.00113685,3196.3,3195.9,0.125]
[1642488013247,0.00113685,3196.3,3195.9,2.77352374]
[1642488013650,0.00113685,3196.3,3196.0,1.0]
[1642488013847,0.00113685,3196.3,3196.1,0.125]
[1642488014847,0.00113685,3196.3,3196.0,0.125]
[1642488017798,0.00113685,3196.3,3195.8,0.00170527]
[1642488018396,0.125,3196.2,3195.8,0.00170527]